[Event "44th Chess Olympiad Women 2022"]
[Site "Chennai"]
[Date "2022.08.01"]
[Round "4.10"]
[White "Andric, Jelena"]
[Black "Forgas Moreno, Yaniela"]
[Result "0-1"]
[WhiteElo "1993"]
[BlackElo "2343"]
[Annotator "TA"]
[PlyCount "72"]
[EventDate "2022.??.??"]
[TimeControl "60"]

{[%evp 9,72,14,23,19,14,-47,-35,-124,-104,-106,-105,-133,-127,-147,-113,-135,
-67,-94,-102,-104,-59,-97,-82,-99,-98,-149,-149,-213,-227,-232,-206,-239,-231,
-385,-372,-378,-371,-535,-529,-621,-614,-597,-575,-1791,-1008,-993,-978,-1102,
-1073,-29985,-29986,-29986,-29987,-29987,-29988,-29988,-29989,-29989,-29990,
-29990,-29991,-29991,-29992,-29997,-29996]} 1. d4 {[%emt 0:00:10]} f5 {[%emt 0:
00:00]} 2. g3 {[%emt 0:00:50]} Nf6 {[%emt 0:00:18]} 3. Bg2 {[%emt 0:00:17]} d6
{[%emt 0:00:30][%cal Yd7d6,Yd6e5]} 4. Nh3 {[%emt 0:03:40]} g6 {[%emt 0:01:00]}
5. Nf4 {[%emt 0:02:14]} c6 {[%emt 0:02:10]} 6. h4 {[%emt 0:00:00] [#] A81:
Dutch Defence: 2 g3.} Qc7 $146 {[%emt 0:04:40]} ({Predecessor:} 6... e5 7. dxe5
dxe5 8. Qxd8+ Kxd8 9. Nd3 e4 10. Bg5 Ke7 11. Nf4 Kf7 12. h5 Nxh5 13. Nxh5 gxh5
{1-0 (26) Votava,J (2522)-Potapov,P (2500) Pardubice 2018}) 7. c3 {[%emt 0:18:
17]} (7. d5 $11) 7... e5 $15 {[%emt 0:03:04]} 8. dxe5 {[%emt 0:01:47]} (8. Nh3
$15) 8... dxe5 $17 {[%emt 0:00:15]} 9. Nd3 {[%emt 0:00:00] [#]} Be6 $1 {
[%emt 0:01:28] Against Qb3} 10. O-O {[%emt 0:06:28]} Nbd7 {[%emt 0:03:10]} 11.
Qc2 {[%emt 0:07:16]} Be7 {[%emt 0:09:39]} 12. Nd2 {[%emt 0:00:00]} O-O {
[%emt 0:09:45] Black is more active.} (12... h6 $17 13. Rd1 g5) 13. Nb3 {
[%emt 0:07:09]} Ng4 {[%emt 0:08:47]} 14. Bg5 {[%emt 0:13:14]} Bd6 {[%emt 0:13:
02]} 15. c4 {[%emt 0:02:08] Threatens to win with c5.} Rf7 {[%emt 0:00:00]} 16.
Rac1 {[%emt 0:05:27]} Re8 {[%emt 0:09:00] White must now prevent .. .e4.} 17.
f3 {[%emt 0:02:28] Against e4} (17. e4 $142) 17... Ngf6 {[%emt 0:00:00]} 18. c5
{[%emt 0:02:00]} (18. Rf2 $17) 18... Bf8 $19 {[%emt 0:00:17]} 19. e4 {[%emt 0:
01:43] [#]} Nh5 $1 {[%emt 0:01:59]} 20. exf5 {[%emt 0:01:11]} gxf5 {[%emt 0:00:
32]} 21. Qf2 $2 {[%emt 0:01:14]} (21. g4 Ng3 22. Rfe1) 21... f4 {[%emt 0:02:12]
} 22. gxf4 {[%emt 0:01:35]} h6 {[%emt 0:00:44][%cal Yh7h6,Yh6g5]} 23. fxe5 {
[%emt 0:01:32]} (23. Rfe1 {only move.}) 23... hxg5 {[%emt 0:00:35]} 24. Rce1 {
[%emt 0:02:36]} Bxb3 {[%emt 0:03:15]} 25. axb3 {[%emt 0:00:16]} Nxe5 {[%emt 0:
00:10]} 26. Qe3 {[%emt 0:01:58] [#]} Nxf3+ {[%emt 0:03:27]} 27. Rxf3 {[%emt 0:
00:36]} Rxe3 {[%emt 0:00:06]} 28. Rfxe3 {[%emt 0:00:15]} Nf4 {[%emt 0:00:30]
aiming for ...Nxd3.} 29. hxg5 {[%emt 0:00:38]} Nxd3 {[%emt 0:00:49] Black
mates.} 30. Rxd3 {[%emt 0:00:03]} Bxc5+ {[%emt 0:02:11]} 31. Kh1 {[%emt 0:00:
08]} Qf4 {[%emt 0:01:25]} 32. Rh3 {[%emt 0:00:48]} Rh7 {[%emt 0:00:29]} 33.
Re8+ {[%emt 0:01:04]} Kg7 {[%emt 0:00:00]} 34. Rxh7+ {[%emt 0:00:14]} Kxh7 {
[%emt 0:00:05]} 35. Be4+ {[%emt 0:00:11]} Kg7 {[%emt 0:00:06]} 36. g6 {[%emt 0:
00:17]} Qf2 {[%emt 0:00:17] Weighted Error Value: White=0.61/Black=0.23 
(precise)} 0-1

[Event "44th Chess Olympiad Women 2022"]
[Site "Chennai"]
[Date "2022.08.01"]
[Round "4.10"]
[White "Arribas Robaina, Maritza"]
[Black "Johansson, Viktoria"]
[Result "1-0"]
[WhiteElo "2239"]
[BlackElo "2041"]
[Annotator "NA RC"]
[PlyCount "73"]
[EventDate "2022.??.??"]
[TimeControl "60"]

1. e4 {[%emt 0:00:03]} c5 {[%emt 0:00:06]} 2. Nc3 {[%emt 0:00:45]} Nc6 {
[%emt 0:00:18]} 3. Bb5 {[%emt 0:00:07]} g6 {[%emt 0:04:05]} 4. Bxc6 {[%emt 0:
00:00]} dxc6 {[%emt 0:00:46]} 5. f4 {[%emt 0:00:40]} Bg7 {[%emt 0:01:06]} 6. d3
{[%emt 0:01:55]} Nf6 {[%emt 0:09:10]} 7. Nf3 {[%emt 0:01:04]} O-O {[%emt 0:00:
00]} 8. O-O {[%emt 0:01:35]} Qc7 {[%emt 0:05:33]} 9. Qe1 {[%emt 0:02:39]} Bg4 {
[%emt 0:08:22]} 10. Ne5 {[%emt 0:04:09]} Rad8 {[%emt 0:04:01]} 11. Be3 {
[%emt 0:05:03]} b6 {[%emt 0:02:29]} 12. Qh4 {[%emt 0:01:04]} Bc8 {[%emt 0:00:
00]} 13. Rae1 {[%emt 0:05:31]} Nh5 {[%emt 0:12:22]} 14. Nc4 {[%emt 0:06:28]}
Nf6 {[%emt 0:05:55]} 15. f5 {[%emt 0:02:32]} b5 {[%emt 0:08:45]} 16. Nd2 {
[%emt 0:06:23]} c4 {[%emt 0:02:24]} 17. dxc4 {[%emt 0:06:20]} bxc4 {[%emt 0:00:
00]} 18. Rf3 {[%emt 0:05:39]} h5 {[%emt 0:07:18]} 19. Nxc4 {[%emt 0:04:13]} Ng4
{[%emt 0:04:58]} 20. Bf4 {[%emt 0:05:27]} Qd7 {[%emt 0:00:07]} 21. h3 {[%emt 0:
00:00]} Qd4+ {[%emt 0:00:33]} 22. Ne3 {[%emt 0:00:07]} Nxe3 {[%emt 0:01:30]}
23. Bxe3 {[%emt 0:00:53]} Qb4 {[%emt 0:00:53]} 24. Bg5 {[%emt 0:05:47]} f6 {
[%emt 0:01:51]} 25. Bc1 {[%emt 0:00:12]} Bxf5 {[%emt 0:01:45]} 26. Qg3 {
[%emt 0:03:14]} Be6 {[%emt 0:01:18]} 27. Qxg6 {[%emt 0:01:20]} Bf7 {[%emt 0:00:
00]} 28. Qg3 {[%emt 0:01:22]} Kh7 {[%emt 0:01:19]} 29. Qf4 {[%emt 0:02:27]} e5
{[%emt 0:01:55]} 30. Qh4 {[%emt 0:01:59]} Kg8 {[%emt 0:05:49]} 31. a3 {[%emt 0:
00:00]} Qb6+ {[%emt 0:00:36]} 32. Kh1 {[%emt 0:00:19]} Bg6 {[%emt 0:01:05]} 33.
Ne2 {[%emt 0:01:18]} Kf7 {[%emt 0:01:09]} 34. Ng3 {[%emt 0:01:27]} Rh8 {
[%emt 0:01:20]} 35. Nf5 {[%emt 0:00:26]} Bxf5 {[%emt 0:00:43]} 36. Rxf5 {
[%emt 0:00:33]} Rh6 {[%emt 0:00:15]} 37. Bxh6 {[%emt 0:00:17]} 1-0

[Event "44th Chess Olympiad Women 2022"]
[Site "Chennai"]
[Date "2022.08.01"]
[Round "4.10"]
[White "Ordaz Valdes, Lisandra Teresa"]
[Black "Cramling, Pia"]
[Result "1/2-1/2"]
[WhiteElo "2367"]
[BlackElo "2459"]
[Annotator "TA"]
[PlyCount "190"]
[EventDate "2022.??.??"]
[TimeControl "60"]

{[%evp 10,190,6,0,16,5,5,0,20,12,36,25,43,18,40,18,45,0,14,0,0,0,3,0,0,0,0,0,0,
0,-12,-21,0,-4,-4,0,6,8,17,0,0,-44,-22,-23,-9,-54,-47,-82,-92,-82,0,0,-7,-11,0,
-1,-7,-30,-35,-33,-20,-60,-54,-71,-57,-91,-16,-15,0,-19,0,-61,-60,-114,-122,
-122,-128,-121,-119,-135,-134,-115,-114,-134,-128,-208,-145,-256,-135,-121,
-117,-224,-229,-203,-87,-164,-72,-83,-79,-77,-50,-433,-400,-433,-426,-404,-395,
-381,-377,-480,-488,-468,-426,-374,-353,-808,-757,-664,-638,-556,-549,-567,
-541,-529,-519,-441,-355,-478,-453,-439,-418,-1383,-1209,-1561,-1565,-1523,
-1376,-29957,-29948,-4614,-1191,-1102,-1044,-1729,-590,-382,-307,-305,-294,
-593,-568,-350,-172,-172,-183,-177,-9,-15,0,0,0,0,0,0,0,0,0,0,0,0,328,328,328,
328,328,0,0,0,0,0,0,0,0]} 1. d4 {[%emt 0:00:03]} Nf6 {[%emt 0:00:22]} 2. Nc3 {
[%emt 0:00:15]} d5 {[%emt 0:01:36]} 3. Bf4 {[%emt 0:00:21]} c6 {[%emt 0:05:35]}
4. e3 {[%emt 0:01:06]} Bf5 {[%emt 0:02:01]} 5. Nf3 {[%emt 0:00:10]} e6 {
[%emt 0:02:48]} 6. Bd3 {[%emt 0:02:01]} Bxd3 {[%emt 0:07:43]} 7. Qxd3 {[%emt 0:
00:00]} Nbd7 {[%emt 0:02:22]} 8. O-O {[%emt 0:00:47]} Be7 {[%emt 0:00:52]} 9.
e4 {[%emt 0:04:13]} Nb6 {[%emt 0:05:48]} 10. a4 {[%emt 0:07:17]} O-O {[%emt 0:
00:00]} 11. Rfd1 {[%emt 0:22:40]} Re8 {[%emt 0:09:41]} 12. h3 {[%emt 0:01:43]}
h6 {[%emt 0:03:42]} 13. Ne5 {[%emt 0:07:07]} Nfd7 {[%emt 0:14:19]} 14. Qg3 {
[%emt 0:14:01]} Bh4 {[%emt 0:03:12]} 15. Qg4 {[%emt 0:03:59]} Nxe5 {[%emt 0:00:
00]} 16. dxe5 {[%emt 0:04:41]} Bg5 {[%emt 0:00:36]} 17. Bg3 {[%emt 0:03:16]}
Qc7 {[%emt 0:07:13]} 18. b3 {[%emt 0:08:05]} Rad8 {[%emt 0:00:25]} 19. h4 {
[%emt 0:08:13]} Be7 {[%emt 0:00:08]} 20. Bf4 {[%emt 0:01:47]} Bf8 {[%emt 0:00:
00]} (20... Nd7 $5 {[%cal Rd7e5]}) 21. Qg3 {[%emt 0:00:42]} Kh8 {[%emt 0:02:40]
} 22. a5 {[%emt 0:01:32]} Nc8 {[%emt 0:00:38]} 23. a6 {[%emt 0:00:56]} b5 {
[%emt 0:00:59]} 24. Qf3 {[%emt 0:02:09]} Nb6 {[%emt 0:02:44]} 25. Ne2 {[%emt 0:
00:00]} dxe4 {[%emt 0:02:42]} 26. Qxe4 {[%emt 0:00:07]} Nd5 {[%emt 0:00:52]}
27. Bg3 {[%emt 0:01:12]} Nb4 {[%emt 0:01:28]} 28. Rd4 {[%emt 0:01:36]} Rxd4 {
[%emt 0:01:18]} 29. Nxd4 {[%emt 0:00:19]} Rd8 {[%emt 0:00:32]} (29... Bc5 $17
30. Ne2 Rd8) 30. c3 $11 {[%emt 0:00:24]} Nd5 {[%emt 0:00:13]} 31. c4 {[%emt 0:
00:00]} bxc4 {[%emt 0:01:11]} 32. bxc4 {[%emt 0:00:06]} Nb4 {[%emt 0:00:08]}
33. Nc2 {[%emt 0:00:29]} Nxc2 {[%emt 0:03:17]} 34. Qxc2 {[%emt 0:00:01]} Qb6 {
[%emt 0:00:09]} 35. Qa2 {[%emt 0:01:10]} Qd4 {[%emt 0:00:44]} 36. Rb1 {[%emt 0:
00:00]} Bc5 {[%emt 0:00:31]} 37. Rb7 {[%emt 0:00:15]} Qe4 {[%emt 0:02:33]} (
37... Kg8 $17 {Strongly threatening ...g5.} 38. Qb1 g6) 38. Kh2 $11 {[%emt 0:
00:00]} Kg8 {[%emt 0:00:14]} 39. Qb3 {[%emt 0:00:15]} Rd2 {[%emt 0:01:01]} 40.
Rb8+ {[%emt 0:00:58]} (40. Qf3 $1 $11 Qxf3 41. gxf3) 40... Kh7 $15 {[%emt 0:00:
00]} 41. Qb1 {[%emt 0:09:17]} ({White should play} 41. Qf3 $1 $15 Qxf3 42. gxf3
) 41... Qxb1 $17 {[%emt 0:04:02]} 42. Rxb1 {[%emt 0:01:04]} Kg6 {[%emt 0:10:00]
} ({But not} 42... Bxf2 $6 43. Bxf2 Rxf2 44. Rb7 $11) 43. Rb7 {[%emt 0:00:41]}
Ra2 $1 {[%emt 0:00:33]} 44. h5+ {[%emt 0:02:50]} Kxh5 {[%emt 0:00:06]} 45. Rxf7
{[%emt 0:00:04]} Kg6 {[%emt 0:00:18]} (45... Rxa6 $2 46. Rxg7 Ra4 47. f3 $18 (
47. Rc7 Rxc4 48. Rxc6 a5 $11)) 46. Rd7 {[%emt 0:00:29]} Rxa6 {[%emt 0:01:13]}
47. Kh3 {[%emt 0:01:01]} (47. Rc7 $17) 47... Ra3 {[%emt 0:05:13]} 48. Kh2 {
[%emt 0:01:54]} (48. f3 $17 {was the only chance.}) 48... h5 {[%emt 0:02:01]} (
48... Ra4 $19 49. Rc7 Rxc4 50. Rxc6 Kf5) 49. Rc7 $17 {[%emt 0:03:37]} Ra6 {
[%emt 0:00:05]} 50. Kh3 {[%emt 0:07:17]} (50. f3 $17) 50... Rb6 $1 $19 {
[%emt 0:02:40]} 51. Rxa7 {[%emt 0:06:18]} Rb1 {[%emt 0:02:00]} (51... Rb3 $19 {
has better winning chances.} 52. Ra2 Kf5) 52. Ra2 {[%emt 0:00:31]} (52. Rd7 $17
) 52... Rh1+ {[%emt 0:01:05]} (52... Kf5 $19 {...g5 is the strong threat.} 53.
Bh2 Rc1) 53. Bh2 $17 {[%emt 0:00:09]} Bd4 {[%emt 0:00:25]} 54. Ra6 {[%emt 0:00:
00]} Bxf2 {[%emt 0:01:53]} (54... Bxe5 $5 55. g3 c5 56. Rxe6+ Kf5 $17) 55. g3
$2 {[%emt 0:00:03]} (55. g4 $1 $15) 55... Bd4 $19 {[%emt 0:01:18]} 56. Rxc6 {
[%emt 0:00:35]} Kf5 {[%emt 0:00:04]} 57. Rc7 {[%emt 0:00:43]} Bxe5 {[%emt 0:01:
03]} 58. Rf7+ {[%emt 0:00:06]} Bf6 {[%emt 0:00:32]} 59. Ra7 {[%emt 0:01:32]}
Rc1 {[%emt 0:00:56]} 60. Ra5+ {[%emt 0:00:23]} e5 {[%emt 0:00:00]} 61. Ra2 {
[%emt 0:00:28]} Rxc4 {[%emt 0:00:31]} 62. Re2 $2 {[%emt 0:00:01]} (62. Rf2+ Ke6
63. Bg1) 62... g5 $19 {[%emt 0:01:00]} 63. Rf2+ {[%emt 0:00:28]} Ke6 {[%emt 0:
00:07]} 64. Ra2 {[%emt 0:00:07]} Rc3 {[%emt 0:01:11]} 65. Kg2 {[%emt 0:00:03]}
g4 {[%emt 0:00:29]} 66. Bg1 {[%emt 0:00:08]} Rd3 {[%emt 0:00:00]} 67. Bf2 {
[%emt 0:00:34]} Bg5 {[%emt 0:00:42]} 68. Ra6+ {[%emt 0:00:22]} Kf5 {[%emt 0:00:
15]} 69. Ra4 {[%emt 0:01:52]} Rf3 {[%emt 0:02:14]} 70. Rb4 {[%emt 0:00:48]} (
70. Ra2 $142) 70... Bd2 $19 {[%emt 0:02:00]} 71. Rb2 {[%emt 0:00:00]} Bc3 {
[%emt 0:00:32]} 72. Re2 {[%emt 0:00:01]} Bd4 {[%emt 0:00:52]} 73. Be1 {[%emt 0:
00:03]} e4 {[%emt 0:00:20]} 74. Ra2 {[%emt 0:00:17]} Rb3 {[%emt 0:00:00]} (
74... e3 $142 75. Ra4 Ke5 76. Ra5+ Ke4) 75. Ra4 $19 {[%emt 0:00:24]} Be5 {
[%emt 0:00:21]} 76. Kf1 {[%emt 0:00:19]} Rb2 {[%emt 0:00:23]} (76... Bxg3 $142
77. Bxg3 Rxg3 78. Ra5+ Kg6 79. Ra6+ Kg5 80. Ra5+ Kh4) 77. Ra5 $19 {[%emt 0:00:
22]} Rc2 {[%emt 0:00:09]} 78. Bf2 {[%emt 0:00:05]} Ke6 {[%emt 0:00:00]} 79.
Ra6+ $2 {[%emt 0:00:12]} (79. Be3) 79... Bd6 $19 {[%emt 0:00:59]} 80. Ra5 {
[%emt 0:00:18]} h4 {[%emt 0:00:30]} (80... Rc3 $142 {Threatens to win with ...
e3.} 81. Rxh5 e3) 81. gxh4 $19 {[%emt 0:00:34]} g3 $1 {[%emt 0:00:04]} 82. Be3
{[%emt 0:01:11] [#]} Rh2 $2 {[%emt 0:00:37]} (82... Rc3 $1 $19 {[%cal Rc3e3]}
83. Bg1 Bf4) 83. h5 $11 {[%emt 0:01:07]} Be5 {[%emt 0:00:55]} 84. h6 {[%emt 0:
00:17]} Rh1+ {[%emt 0:00:22]} 85. Kg2 {[%emt 0:00:17]} Rh2+ {[%emt 0:00:04]}
86. Kf1 {[%emt 0:00:19]} Kf6 {[%emt 0:00:21]} 87. Rb5 {[%emt 0:00:00]} Rh1+ {
[%emt 0:00:56]} 88. Kg2 {[%emt 0:00:03]} Rh2+ {[%emt 0:00:07]} 89. Kf1 {
[%emt 0:00:04]} Bf4 $2 {[%emt 0:01:11]} (89... Ba1 $11) 90. Bxf4 $18 {[%emt 0:
01:09]} Rf2+ {[%emt 0:00:08]} 91. Kg1 {[%emt 0:00:09]} Rxf4 {[%emt 0:00:03] [#]
} 92. h7 $2 {[%emt 0:00:16]} ({Only move:} 92. Rh5 $1 $18 {h7 would kill now.}
Kg6 93. h7 Kxh5 94. h8=Q+ Kg4 95. Qd4) 92... Rh4 {[%emt 0:00:00]} 93. Kg2 {
[%emt 0:00:16]} Rxh7 {[%emt 0:00:33]} 94. Kxg3 {[%emt 0:00:01]} Re7 {[%emt 0:
00:10]} 95. Kf2 {[%emt 0:00:13]} Re5 {[%emt 0:01:26]} 1/2-1/2

[Event "44th Chess Olympiad Women 2022"]
[Site "Chennai"]
[Date "2022.08.01"]
[Round "4.11"]
[White "Abrahamyan, Tatev"]
[Black "Nguyen, Thu Giang"]
[Result "1-0"]
[WhiteElo "2291"]
[BlackElo "2119"]
[Annotator "RC"]
[PlyCount "111"]
[EventDate "2022.??.??"]
[TimeControl "60"]

1. e4 {[%emt 0:00:04]} c6 {[%emt 0:00:14]} 2. Nf3 {[%emt 0:00:27]} d5 {[%emt 0:
00:00]} 3. d3 {[%emt 0:00:17]} Qc7 {[%emt 0:01:50]} 4. Nc3 {[%emt 0:02:46]}
dxe4 {[%emt 0:02:04]} 5. dxe4 {[%emt 0:00:58]} e5 {[%emt 0:00:57]} 6. Bc4 {
[%emt 0:01:34]} h6 {[%emt 0:01:34]} 7. O-O {[%emt 0:08:52]} b5 {[%emt 0:01:39]}
8. Bb3 {[%emt 0:01:03]} Bc5 {[%emt 0:00:27]} 9. Ne2 {[%emt 0:10:06]} Nf6 {
[%emt 0:02:37]} 10. Ng3 {[%emt 0:00:42]} O-O {[%emt 0:05:25]} 11. h3 {[%emt 0:
00:00]} a5 {[%emt 0:06:24]} 12. a3 {[%emt 0:06:33]} Ba6 {[%emt 0:06:25]} 13.
Nh4 {[%emt 0:04:15]} Nbd7 {[%emt 0:21:39]} 14. Qf3 {[%emt 0:02:52]} Rfd8 {
[%emt 0:18:59]} 15. Ngf5 {[%emt 0:05:26]} Bf8 {[%emt 0:04:21]} 16. Bxh6 {
[%emt 0:14:45]} Nc5 {[%emt 0:04:25]} 17. Bg5 {[%emt 0:12:49]} Ncxe4 {[%emt 0:
00:00]} 18. Bxf6 {[%emt 0:02:20]} Nxf6 {[%emt 0:00:21]} 19. Nh6+ {[%emt 0:00:
00]} gxh6 {[%emt 0:00:08]} 20. Qxf6 {[%emt 0:00:08]} Bg7 {[%emt 0:01:31]} 21.
Qg6 {[%emt 0:01:37]} Rd5 {[%emt 0:02:17]} 22. Bxd5 {[%emt 0:00:31]} cxd5 {
[%emt 0:00:06]} 23. Qg4 {[%emt 0:01:11]} Bc8 {[%emt 0:03:41]} 24. Nf5 {[%emt 0:
00:00]} Bxf5 {[%emt 0:00:17]} 25. Qxf5 {[%emt 0:00:02]} Ra6 {[%emt 0:01:54]}
26. Qd3 {[%emt 0:04:58]} Qc6 {[%emt 0:04:04]} 27. Rad1 {[%emt 0:01:01]} d4 {
[%emt 0:01:14]} 28. Rfe1 {[%emt 0:00:27]} Rb6 {[%emt 0:00:20]} 29. c3 {[%emt 0:
00:00]} Qc4 {[%emt 0:00:50]} 30. cxd4 {[%emt 0:03:18]} Qxd3 {[%emt 0:00:03]}
31. Rxd3 {[%emt 0:00:02]} exd4 {[%emt 0:00:03]} 32. Re8+ {[%emt 0:00:48]} Kh7 {
[%emt 0:00:07]} 33. Re7 {[%emt 0:01:07]} Kg8 {[%emt 0:00:31]} 34. Rc7 {[%emt 0:
00:00]} Be5 {[%emt 0:00:22]} 35. Rc5 {[%emt 0:00:14]} Bf6 {[%emt 0:03:56]} 36.
Kf1 {[%emt 0:00:20]} a4 {[%emt 0:00:18]} 37. Rc8+ {[%emt 0:00:40]} Kh7 {
[%emt 0:00:22]} 38. Rc7 {[%emt 0:01:01]} Kg7 {[%emt 0:00:26]} 39. Rg3+ {
[%emt 0:00:27]} Kf8 {[%emt 0:00:07]} 40. Rf3 {[%emt 0:00:18]} Kg7 {[%emt 0:00:
00]} 41. Ke2 {[%emt 0:08:51]} Rd6 {[%emt 0:19:22]} 42. Rb7 {[%emt 0:03:13]} Rd5
{[%emt 0:00:45]} 43. Kd3 {[%emt 0:00:41]} Rc5 {[%emt 0:01:16]} 44. g4 {[%emt 0:
00:00]} Re5 {[%emt 0:07:20]} 45. Rf5 {[%emt 0:01:05]} Re1 {[%emt 0:00:34]} 46.
Rbxb5 {[%emt 0:01:10]} Rd1+ {[%emt 0:00:58]} 47. Kc2 {[%emt 0:00:33]} Re1 {
[%emt 0:00:21]} 48. Rb7 {[%emt 0:05:26]} Re6 {[%emt 0:01:41]} 49. Kd3 {[%emt 0:
00:00]} Rc6 {[%emt 0:02:10]} 50. h4 {[%emt 0:02:20]} Kg6 {[%emt 0:01:31]} 51.
h5+ {[%emt 0:00:18]} Kg7 {[%emt 0:00:01]} 52. f4 {[%emt 0:01:07]} Re6 {[%emt 0:
00:00]} 53. g5 {[%emt 0:00:48]} Re3+ {[%emt 0:00:22]} 54. Kc4 {[%emt 0:00:08]}
hxg5 {[%emt 0:00:21]} 55. fxg5 {[%emt 0:00:05]} Be5 {[%emt 0:00:20]} 56. Rbxf7+
{[%emt 0:02:57]} 1-0

[Event "44th Chess Olympiad Women 2022"]
[Site "Chennai"]
[Date "2022.08.01"]
[Round "4.11"]
[White "Richards, Heather S"]
[Black "Zatonskih, Anna"]
[Result "1/2-1/2"]
[WhiteElo "2146"]
[BlackElo "2383"]
[Annotator "TA"]
[PlyCount "62"]
[EventDate "2022.??.??"]
[TimeControl "60"]

{[%evp 9,62,0,-3,0,0,-12,0,-62,-48,-52,-7,-8,13,-12,0,0,16,9,8,32,35,34,94,36,
77,30,60,70,84,-60,-43,-34,-37,-58,87,-31,44,-43,-38,-88,-44,-47,-60,-80,0,0,0,
0,14,14,22,14,31,39,69]} 1. d4 {[%emt 0:00:03]} Nf6 {[%emt 0:01:36]} 2. Nc3 {
[%emt 0:00:07]} d5 {[%emt 0:02:48]} 3. Bf4 {[%emt 0:02:26]} e6 {[%emt 0:11:17]}
4. Nb5 {[%emt 0:00:13]} Bb4+ {[%emt 0:02:54]} 5. c3 {[%emt 0:00:08]} Ba5 {
[%emt 0:00:07]} 6. e3 {[%emt 0:00:48] D00:1 d4 d5: Unusual lines.} O-O {
[%emt 0:06:52]} 7. Bd3 {[%emt 0:09:24] [#]} Nbd7 $146 {[%emt 0:09:08]} ({
Predecessor:} 7... c6 8. Na3 Nbd7 9. g4 Bc7 10. g5 Ne4 11. Bxc7 Qxc7 12. Bxe4
dxe4 13. Ne2 e5 {0-1 (37) Alekseenko,K (2638)-Predke,A (2622) St Petersburg
2018}) 8. g4 {[%emt 0:02:02]} (8. b4 $11 a6 9. Na3) 8... a6 $15 {[%emt 0:29:48]
} 9. Na3 {[%emt 0:00:42]} Qe7 {[%emt 0:00:06]} 10. g5 $1 {[%emt 0:05:07]} Ne8 {
[%emt 0:00:18]} 11. Nf3 {[%emt 0:02:57] Prevents e5.} (11. Qh5 g6 12. Qh4 e5
13. Bxe5 Nxe5 14. dxe5 Qxe5 $15) 11... c5 {[%emt 0:04:24]} 12. Qc2 {[%emt 0:00:
00]} g6 {[%emt 0:02:33]} 13. h4 {[%emt 0:01:06][%cal Yh2h4,Yh4h5] next h5 is
good for White.} c4 {[%emt 0:07:16]} 14. Be2 {[%emt 0:00:43]} b5 {[%emt 0:00:
03]} 15. h5 {[%emt 0:12:26]} b4 {[%emt 0:00:22] [#]} (15... Ng7 $14) 16. Nb1 {
[%emt 0:00:50] White is more active.} ({Better is} 16. Qa4 $1 $16) 16... e5 {
[%emt 0:02:19]} 17. dxe5 {[%emt 0:08:21]} (17. Nxe5 $16 Nxe5 18. Bxe5) 17...
Nc5 {[%emt 0:03:31]} 18. Nd4 {[%emt 0:04:06] Inhibits Bf5.} Bd7 {[%emt 0:00:17]
} 19. f3 {[%emt 0:04:40]} ({White should play} 19. Kf1 $16) 19... Ng7 $36 {
[%emt 0:02:20] Black has good play.} 20. cxb4 {[%emt 0:00:00]} Bxb4+ {[%emt 0:
00:48]} 21. Nc3 {[%emt 0:00:07]} Bf5 {[%emt 0:01:21]} (21... Bxc3+ $15 22. Qxc3
Nxh5) 22. Qd2 {[%emt 0:05:18]} ({White should try} 22. Nxf5 $16 Nxf5 23. O-O-O
Bxc3 24. Qxc3) 22... Qd7 {[%emt 0:02:11]} (22... Qb7 $15) 23. Kf2 {[%emt 0:01:
55]} (23. Nxf5 $14 Qxf5 24. hxg6 (24. Qxd5 Nd3+ 25. Bxd3 cxd3 $11)) 23... Bd3 {
[%emt 0:02:21]} 24. Kg3 {[%emt 0:23:24]} (24. hxg6 $15 fxg6 25. a3 Bxc3 26.
bxc3 (26. Qxc3 Bxe2 27. Nxe2 Nge6 $17)) 24... Nxh5+ {[%emt 0:01:24]} (24...
Rab8 {is more complex.} 25. hxg6 fxg6 26. Rad1 Ba5) 25. Rxh5 {[%emt 0:01:07]}
gxh5 {[%emt 0:00:01]} 26. Bxd3 {[%emt 0:00:09] [#]} Nxd3 {[%emt 0:00:47]} ({
Of course not} 26... cxd3 27. Rh1 $11) (26... h4+ $1 $17 27. Kxh4 Nxd3) 27. Rh1
$11 {[%emt 0:00:29]} Rae8 {[%emt 0:03:30]} ({Much worse is} 27... Bxc3 28. Qxc3
Qe8 29. b3 $15) 28. Qh2 {[%emt 0:02:17][%cal Yc3d5]} Bxc3 {[%emt 0:02:00]} 29.
bxc3 {[%emt 0:00:19]} Nxe5 {[%emt 0:01:28] And now ...f6 would win.} 30. Qxh5 {
[%emt 0:00:11][%csl Gh1][%cal Rh5h7]} f5 {[%emt 0:00:18]} 31. gxf6 {[%emt 0:01:
30] The board is on fire.} Ng6 {[%emt 0:00:24] Weighted Error Value: White=0.
35/Black=0.29 (precise)} 1/2-1/2

[Event "44th Chess Olympiad Women 2022"]
[Site "Chennai"]
[Date "2022.08.01"]
[Round "4.11"]
[White "Ryjanova, Julia"]
[Black "Tokhirjonova, Gulrukhbegim"]
[Result "1/2-1/2"]
[WhiteElo "2284"]
[BlackElo "2329"]
[Annotator "TA"]
[PlyCount "67"]
[EventDate "2022.??.??"]
[TimeControl "60"]

{[%evp 25,67,36,31,34,79,53,87,46,54,45,45,51,52,31,50,20,19,17,61,61,45,64,47,
0,60,49,67,18,37,14,13,8,0,0,0,0,0,0,0,0,0,0,8,0]} 1. d4 Nf6 2. c4 g6 3. g3 Bg7
4. Bg2 d5 5. cxd5 Nxd5 6. e4 Nb6 7. Ne2 O-O 8. O-O Nc6 {[%cal Yb8c6,Yc6e5,
Ye5c4]} 9. d5 Ne5 10. Nbc3 c6 11. Bf4 cxd5 12. exd5 Nec4 13. b3 Nd6 $1 14. Rc1
{[#] D72: Fianchetto Grünfeld: 5 cxd5 Nxd5 6 e4 Nb6 (without Nf3).} a6 $146 ({
Predecessor:} 14... Bd7 15. Qd2 Rc8 16. Rfe1 Re8 17. Nd4 Nf5 18. Ndb5 a6 19.
Na3 Nd4 20. Be5 Nf5 21. Bxg7 Kxg7 {1-0 (84) Seliverstov,V (2462)-Meissner, F 
(2381) Chess.com INT 2022}) 15. Qd2 Bd7 16. Rfe1 {White is better.} Rc8 17. Nd4
Re8 18. h3 h5 19. Bg5 Nf5 20. Nce2 Rxc1 21. Rxc1 Be5 22. Nxf5 {White is more
active.} Bxf5 23. Nd4 Bc8 24. Ne2 (24. Nf3 $14 Bg7 25. Rd1) 24... Qd6 (24...
Bf5 $11) 25. Be3 $14 Nd7 26. Nc3 (26. Nd4 $14 {feels stronger.}) 26... Qb4 $11
27. Ne4 {[%cal Yc3e4,Ye4d2,Yd2f3,Yf3d4,Yd4c6]} Qxd2 {The position is equal.}
28. Nxd2 b5 29. Nf3 Bd6 30. Nd4 Nf6 31. Nc6 Bd7 32. Bd4 Rc8 33. Bb2 Kf8 34. h4
{Weighted Error Value: White=0.13 (very precise) /Black=0.12 (very precise)}
1/2-1/2